bitfinex-derivatives/quotes_SOLF0:USTF0_20250413
["timestamp","ask_amount","ask_price","bid_price","bid_amount"]
[1744569977689,34.45147515,131.86,131.84,0.05037601]
[1744569977891,34.4,131.86,131.78,1.9521]
[1744569978093,34.44797163,131.86,131.84,7.63739264]
[1744569978393,34.4,131.86,131.84,7.5868]
[1744569978587,34.45454007,131.86,131.84,7.64256447]
[1744569978790,34.45454007,131.86,131.84,0.05576447]
[1744569978997,56.0976948,131.86,131.84,0.05576447]
[1744569979390,7.5865,131.85,131.84,0.05576447]
[1744569981995,7.5865,131.85,131.79,9.7086]
[1744569981996,7.5879,131.83,131.79,9.7086]
[1744569982992,56.04315473,131.86,131.8,0.05095542]
[1744569982993,7.63826231,131.82,131.8,0.05095542]
[1744569983496,34.42996231,131.82,131.8,0.05095542]
[1744569984399,42.01836231,131.82,131.8,0.05095542]
[1744569984801,34.42996231,131.82,131.8,0.05095542]
[1744569986399,34.42996231,131.82,131.8,7.63985542]
[1744569986590,34.42996231,131.82,131.8,0.05095542]
[1744569986895,635.48,131.88,131.8,0.05095542]
[1744569987100,41.9652,131.88,131.81,3.10674901]
[1744569987289,41.9652,131.88,131.82,2.0991]
[1744569987901,41.9652,131.88,131.85,7.5864]
[1744569988200,0.05154846,131.86,131.85,7.5864]
[1744569988501,0.05154846,131.86,131.84,0.05597268]
[1744569989201,7.5865,131.85,131.84,0.05597268]
[1744569989802,7.63764846,131.86,131.84,0.05597268]
[1744569990403,0.05154846,131.86,131.84,0.05597268]
[1744569991297,0.05154846,131.86,131.85,7.5865]
[1744569994306,0.05154846,131.86,131.84,7.64267268]
[1744569994704,0.05154846,131.86,131.84,0.05597268]
[1744569994908,0.05154846,131.86,131.85,7.5865]
[1744569996604,0.05154846,131.86,131.84,7.64277268]
[1744569997303,0.05154846,131.86,131.84,0.05597268]
[1744569997504,21.69470319,131.86,131.84,0.05597268]
[1744569997698,0.05154846,131.86,131.84,0.05597268]
[1744569999605,7.63764846,131.86,131.84,0.05597268]
[1744569999903,0.05154846,131.86,131.84,0.05597268]
[1744570000304,0.05154846,131.86,131.84,7.64257268]
[1744570000504,0.05154846,131.86,131.84,0.05597268]
[1744570000706,0.05154846,131.86,131.84,7.64267268]
[1744570001005,0.05154846,131.86,131.84,0.05597268]
[1744570001804,0.05154846,131.86,131.84,7.64277268]
[1744570002307,0.05154846,131.86,131.84,0.05597268]
[1744570003107,0.05154846,131.86,131.85,7.5865]
[1744570003403,34.38,131.88,131.84,0.05597268]
[1744570004010,34.38,131.88,131.86,7.5855]
[1744570004509,34.43703161,131.88,131.86,7.5855]
[1744570004712,34.43703161,131.88,131.87,7.5853]
[1744570005311,0.05703161,131.88,131.87,7.5853]
[1744570007606,0.05703161,131.88,131.84,0.05597268]
[1744570007811,34.3,131.87,131.84,0.05597268]
[1744570008314,34.3,131.87,131.85,7.586]
[1744570010310,34.3,131.87,131.84,0.05597268]
[1744570010516,34.3,131.87,131.84,7.64277268]
[1744570012413,34.3,131.87,131.85,7.5863]
[1744570012616,34.3,131.87,131.84,0.05597268]
[1744570013116,34.3,131.87,131.86,7.5859]
[1744570013316,34.3,131.87,131.84,0.05597268]
[1744570013617,34.3,131.87,131.84,7.64287268]
[1744570014318,41.8854,131.87,131.84,7.64287268]
[1744570015417,34.3,131.87,131.84,7.64287268]
[1744570016119,0.05703161,131.88,131.84,0.05597268]
[1744570017015,0.05703161,131.88,131.87,7.5853]
[1744570021521,0.05703161,131.88,131.84,0.05597268]
[1744570021822,34.2,131.87,131.84,0.05597268]
[1744570022318,41.7856,131.87,131.84,0.05597268]
[1744570022722,34.2,131.87,131.84,0.05597268]
[1744570022917,41.7856,131.87,131.84,0.05597268]
[1744570023221,34.2,131.87,131.84,0.05597268]
[1744570023719,7.5862,131.86,131.84,0.05597268]
[1744570024221,7.5865,131.85,131.84,0.05597268]
[1744570028325,21.63389488,131.83,131.75,1.9796]
[1744570028523,34.22,131.82,131.75,1.9796]
[1744570029026,7.589,131.81,131.77,7.5909]
[1744570029325,0.05283928,131.8,131.78,0.05641395]
[1744570029725,7.64253928,131.8,131.78,0.05641395]
[1744570030526,7.5899,131.79,131.78,0.05641395]
[1744570030927,21.68673416,131.8,131.71,1.931]
[1744570031126,34.22,131.79,131.71,1.931]
[1744570031825,34.22,131.79,131.69,1.9472]
[1744570032028,0.05659055,131.76,131.74,0.05535448]
[1744570032230,34.22,131.75,131.74,0.05535448]
[1744570033328,41.8122,131.75,131.74,0.05535448]
[1744570033629,34.22,131.75,131.74,0.05535448]
[1744570034226,41.8122,131.75,131.74,0.05535448]
[1744570037225,34.22,131.75,131.74,0.05535448]
[1744570039527,34.22,131.75,131.74,7.64815448]
[1744570040233,0.05659055,131.76,131.74,7.64815448]
[1744570040438,0.05659055,131.76,131.74,0.05535448]
[1744570040634,13.60840631,131.76,131.74,0.05535448]
[1744570042134,21.20020631,131.76,131.74,0.05535448]
[1744570043129,7.5922,131.75,131.74,0.05535448]
[1744570044337,27.16022207,131.76,131.67,9.5273]
[1744570044531,13.55181576,131.72,131.67,9.5273]
[1744570044831,34.24,131.71,131.67,1.931]
[1744570045033,34.24,131.72,131.67,1.931]
[1744570045530,0.05190092,131.71,131.68,0.05038021]
[1744570046136,0.05190092,131.71,131.7,7.595]
[1744570046638,0.05190092,131.71,131.68,0.05038021]
[1744570046934,34.29190092,131.71,131.68,0.05038021]
[1744570047338,41.88670092,131.71,131.68,0.05038021]
[1744570047739,34.29190092,131.71,131.68,0.05038021]
[1744570047932,41.88660092,131.71,131.68,0.05038021]
[1744570048133,41.88660092,131.71,131.68,7.64648021]
[1744570048328,34.29190092,131.71,131.68,7.64648021]
[1744570048934,34.29190092,131.71,131.68,0.05038021]
[1744570049339,0.05190092,131.71,131.68,0.05038021]
[1744570049537,34.24,131.7,131.68,7.64628021]
[1744570049740,34.24,131.7,131.68,0.05038021]
[1744570050941,47.79181576,131.7,131.68,0.05038021]
[1744570051243,7.5957,131.69,131.68,0.05038021]
[1744570051437,47.79181576,131.7,131.68,0.05038021]
[1744570051837,34.24,131.7,131.68,0.05038021]
[1744570052742,34.24,131.7,131.68,7.64648021]
[1744570053641,34.24,131.7,131.68,0.05038021]
[1744570053836,47.79181576,131.7,131.68,0.05038021]
[1744570054039,7.5957,131.69,131.68,0.05038021]
[1744570055140,0.05190092,131.71,131.68,0.05038021]
[1744570055443,34.16,131.77,131.68,13.60219597]
[1744570055638,34.16,131.77,131.74,7.5926]
[1744570056440,34.21516615,131.77,131.75,7.5922]
[1744570056642,47.76698191,131.77,131.74,0.05562959]
[1744570056839,13.55181576,131.75,131.74,0.05562959]
[1744570057041,13.55181576,131.75,131.63,377.55181576]
[1744570057238,13.55181576,131.73,131.65,1.9317]
[1744570057439,34.16,131.72,131.65,1.9317]
[1744570057734,7.5949,131.71,131.65,1.9317]
[1744570058232,0.05689785,131.69,131.67,0.04902537]
[1744570059544,0.05689785,131.69,131.68,7.5962]
[1744570059744,34.16,131.75,131.67,0.04902537]
[1744570059945,7.5934,131.73,131.66,34.16]
[1744570060244,7.5934,131.73,131.7,7.595]
[1744570060548,7.5931,131.74,131.66,34.16]
[1744570060747,7.5931,131.74,131.71,7.5942]
[1744570060951,34.16,131.75,131.71,7.5942]
[1744570061147,0.05224809,131.74,131.71,7.5942]
[1744570061449,0.05224809,131.74,131.72,0.04982664]
[1744570062348,34.16,131.78,131.72,0.04982664]
[1744570062541,7.5933,131.74,131.7,7.5949]
[1744570062742,21.6958218,131.79,131.7,7.5949]
[1744570062947,38.208,131.78,131.69,2.0687]
[1744570063143,38.208,131.78,131.69,9.6638]
[1744570063346,0.05589444,131.75,131.72,0.05294251]
[1744570063545,34.16,131.74,131.72,0.05294251]
[1744570063749,41.7531,131.74,131.72,0.05294251]
[1744570065651,7.5934,131.73,131.72,0.05294251]
[1744570066050,34.16,131.74,131.72,0.05294251]
[1744570068263,0.05589444,131.75,131.72,0.05294251]
[1744570068741,7.64849444,131.75,131.72,0.05294251]
[1744570069152,0.05589444,131.75,131.72,0.05294251]
[1744570069446,7.5931,131.74,131.72,0.05294251]
[1744570069649,0.05589444,131.75,131.72,0.05294251]
[1744570069851,0.05589444,131.75,131.72,7.64654251]
[1744570071855,7.64819444,131.75,131.72,0.05294251]
[1744570072048,0.05589444,131.75,131.72,0.05294251]
[1744570072353,0.05589444,131.75,131.72,7.64654251]
[1744570073152,7.64809444,131.75,131.72,7.64654251]
[1744570073851,7.5934,131.73,131.72,0.05294251]
[1744570074057,41.7534,131.73,131.72,0.05294251]
[1744570074260,55.8558218,131.73,131.65,1.9317]
[1744570074754,34.16,131.73,131.65,1.9317]
[1744570074952,7.5954,131.7,131.66,7.5971]
[1744570075658,0.05389435,131.69,131.67,0.05188578]
[1744570076659,0.05389435,131.69,131.67,7.64848578]
[1744570077454,0.05389435,131.69,131.67,0.05188578]
[1744570078359,0.05389435,131.69,131.67,7.64868578]
[1744570078764,0.05389435,131.69,131.67,0.05188578]
[1744570079970,34.21389435,131.69,131.67,0.05188578]
[1744570081167,7.5962,131.68,131.67,0.05188578]
[1744570081369,34.21389435,131.69,131.67,0.05188578]
[1744570082067,41.80979435,131.69,131.67,0.05188578]
[1744570082368,34.21389435,131.69,131.67,0.05188578]
[1744570083068,34.21389435,131.69,131.67,7.64848578]
[1744570084067,34.21389435,131.69,131.67,0.05188578]
[1744570085268,34.21389435,131.69,131.67,7.64838578]
[1744570085469,34.21389435,131.69,131.67,0.05188578]
[1744570085671,34.08,131.72,131.71,7.5944]
[1744570086768,34.08,131.74,131.73,7.5932]
[1744570087871,34.08,131.74,131.72,7.5937]
[1744570089671,34.08,131.74,131.73,7.5934]
[1744570090374,34.08,131.74,131.72,7.5937]
[1744570090868,34.08,131.74,131.7,0.05158904]
[1744570091474,41.6732,131.74,131.7,7.64658904]
[1744570091674,34.08,131.74,131.7,0.05158904]
[1744570091871,13.56386015,131.73,131.7,0.05158904]
[1744570092175,21.15836015,131.71,131.7,0.05158904]
[1744570094575,7.5962,131.69,131.63,1.9607]
[1744570094869,34.08,131.68,131.64,3.12315699]
[1744570095073,34.08,131.68,131.63,1.9607]
[1744570095273,34.08,131.68,131.64,3.12394014]
[1744570095477,34.08,131.68,131.65,7.5979]
[1744570095674,34.08,131.68,131.63,1.9607]
[1744570095875,34.13176755,131.68,131.65,0.05564647]
[1744570096670,0.05176755,131.68,131.65,0.05564647]
[1744570097571,0.05176755,131.68,131.67,7.5968]
[1744570099774,0.05176755,131.68,131.67,10.72090851]
[1744570100782,34.08,131.7,131.69,7.5957]
[1744570103183,0.05300654,131.71,131.7,7.5951]
[1744570103586,0.05300654,131.71,131.68,0.04971236]
[1744570103776,7.64790654,131.71,131.68,7.64551236]
[1744570103979,7.64790654,131.71,131.68,0.04971236]
[1744570104280,0.05300654,131.71,131.69,7.5954]
[1744570109193,0.05300654,131.71,131.7,7.5951]
[1744570116902,0.05300654,131.71,131.7,10.72388062]
[1744570118399,33.98,131.74,131.73,7.5934]
[1744570118905,33.98,131.76,131.74,7.5924]
[1744570119106,33.98,131.76,131.7,13.56386015]
[1744570119294,33.98,131.76,131.71,3.12694301]
[1744570119499,33.98,131.76,131.74,7.5924]
[1744570119700,0.05122703,131.75,131.74,7.5924]
[1744570139524,34.03122703,131.75,131.72,0.05381378]
[1744570139732,8.6702165,131.74,131.64,8.6702165]
[1744570139931,8.6702165,131.7,131.65,3.11832224]
[1744570140132,42.6502165,131.7,131.67,7.5965]
[1744570140831,42.6502165,131.7,131.66,7.5973]
[1744570141031,42.6502165,131.7,131.64,8.6702165]
[1744570141032,42.70242766,131.7,131.67,0.0518764]
[1744570141231,8.6702165,131.68,131.67,0.0518764]
[1744570142128,8.6702165,131.69,131.67,0.0518764]
[1744570142732,8.6702165,131.69,131.67,7.6483764]
[1744570143135,41.62731116,131.7,131.67,7.6483764]
[1744570143536,34.03221116,131.7,131.69,7.5957]
[1744570143736,34.03221116,131.7,131.67,0.0518764]
[1744570144337,47.59581787,131.7,131.67,0.0518764]
[1744570144738,7.5957,131.69,131.67,0.0518764]
[1744570144934,34.03221116,131.7,131.67,0.0518764]
[1744570145240,34.03221116,131.7,131.68,7.5959]
[1744570145432,34.03221116,131.7,131.67,0.0518764]
[1744570145929,33.9,131.73,131.67,0.0518764]
[1744570146132,33.9,131.75,131.68,16.68491549]
[1744570146335,33.9,131.75,131.69,7.20590878]
[1744570146536,33.9,131.75,131.69,4.0846]
[1744570146733,33.9,131.75,131.73,7.5932]
[1744570147134,33.94852833,131.75,131.73,7.64471034]
[1744570147537,33.94852833,131.75,131.74,7.5928]
[1744570148937,0.04852833,131.75,131.74,7.5928]
[1744570151936,0.04852833,131.75,131.73,7.64461034]
[1744570152843,0.04852833,131.75,131.74,7.5928]
[1744570153444,0.04852833,131.75,131.73,7.64461034]
[1744570154244,0.04852833,131.75,131.74,7.5928]
[1744570155041,0.04852833,131.75,131.73,7.64481034]
[1744570155247,33.88,131.74,131.73,0.05151034]
[1744570155650,41.4728,131.74,131.73,0.05151034]
[1744570156450,33.88,131.74,131.73,0.05151034]
[1744570158150,33.88,131.74,131.73,7.64491034]
[1744570158350,33.88,131.74,131.73,0.05151034]
[1744570158849,33.88,131.74,131.73,7.64491034]
[1744570159947,0.04852833,131.75,131.74,7.5928]
[1744570168556,0.04852833,131.75,131.73,7.64461034]
[1744570169058,0.04852833,131.75,131.73,0.05151034]
[1744570169259,33.88,131.74,131.73,0.05151034]
[1744570169858,55.04360671,131.74,131.64,13.56360671]
[1744570170060,47.44360671,131.74,131.65,3.12340031]
[1744570170362,47.44360671,131.74,131.7,7.5947]
[1744570170961,47.44360671,131.74,131.71,0.04913923]
[1744570171158,0.05664081,131.73,131.71,0.04913923]
[1744570171764,0.05664081,131.73,131.72,7.5939]
[1744570175165,0.05664081,131.73,131.71,0.04913923]
[1744570177074,0.05664081,131.73,131.72,7.5939]
[1744570177467,0.05664081,131.73,131.71,0.04913923]
[1744570177672,0.05664081,131.73,131.71,7.64333923]
[1744570177972,0.05664081,131.73,131.71,0.04913923]
[1744570179173,0.05664081,131.73,131.71,7.64333923]
[1744570179473,0.05664081,131.73,131.71,0.04913923]
[1744570180273,0.05664081,131.73,131.72,7.5939]
[1744570183974,0.05664081,131.73,131.71,0.04913923]
[1744570184874,0.05664081,131.73,131.71,7.64353923]
[1744570185273,33.85664081,131.73,131.71,7.64353923]
[1744570186278,41.45004081,131.73,131.71,0.04913923]
[1744570186578,33.85664081,131.73,131.71,0.04913923]
[1744570187179,33.85664081,131.73,131.65,4.0386]
[1744570187379,13.56360671,131.72,131.63,2.046]
[1744570187579,13.56360671,131.72,131.64,3.12658149]
[1744570187785,7.5954,131.7,131.66,7.597]
[1744570187975,33.8,131.69,131.63,2.046]
[1744570188172,33.8,131.69,131.68,7.5962]
[1744570188578,33.8,131.69,131.65,0.04860944]
[1744570188777,33.8,131.69,131.68,7.5962]
[1744570189481,33.8,131.69,131.67,7.5966]
[1744570190178,33.8,131.69,131.68,7.5962]
[1744570190481,41.3957,131.69,131.65,0.04860944]
[1744570190681,41.3957,131.69,131.66,3.12618327]
[1744570190882,33.8,131.69,131.67,10.72298327]
[1744570191082,33.8,131.69,131.65,0.04860944]
[1744570191279,33.8,131.69,131.66,3.1260193]
[1744570191477,33.8,131.69,131.65,0.04860944]
[1744570191677,33.8,131.69,131.66,3.12538673]
[1744570191881,33.8,131.69,131.65,0.04860944]
[1744570192077,33.8,131.69,131.66,3.12538673]
[1744570192278,33.8,131.69,131.67,7.5963]
[1744570193383,33.8,131.69,131.65,8.72864176]
[1744570193572,33.8,131.69,131.66,3.12522574]
[1744570193772,33.8,131.69,131.65,8.72864176]
[1744570193978,33.8,131.69,131.66,3.1251503]
[1744570194184,33.8,131.69,131.65,8.72864176]
[1744570194383,33.8,131.69,131.66,3.12536043]
[1744570194579,33.8,131.69,131.65,8.72864176]
[1744570194882,33.8,131.69,131.68,7.5962]
[1744570196279,42.48003232,131.69,131.65,0.04860944]
[1744570196887,42.48003232,131.69,131.67,7.5967]
[1744570199890,50.07603232,131.69,131.66,7.5971]
[1744570200491,42.48003232,131.69,131.67,7.5968]
[1744570200684,0.05589298,131.7,131.65,8.72864176]
[1744570200887,0.05589298,131.7,131.67,8.68003232]
[1744570201589,0.05589298,131.7,131.66,2.0726]
[1744570202389,0.05589298,131.7,131.68,7.5962]
[1744570202784,0.05589298,131.7,131.68,7.64838124]
[1744570204592,8.7359253,131.7,131.68,0.05218124]
[1744570206188,7.5957,131.69,131.68,0.05218124]
[1744570206585,8.7359253,131.7,131.61,10.72673232]
[1744570206782,8.68003232,131.66,131.62,3.12279626]
[1744570206985,8.68003232,131.66,131.61,2.0467]
[1744570207587,33.72,131.67,131.62,8.68003232]
[1744570207787,0.05436718,131.65,131.62,8.7353508]
[1744570207987,0.05436718,131.65,131.64,7.5981]
[1744570209192,0.05436718,131.65,131.62,0.05531848]
[1744570209887,0.05436718,131.65,131.63,7.5988]
[1744570210295,0.05436718,131.65,131.62,0.05531848]
[1744570210491,0.05436718,131.65,131.62,8.7353508]
[1744570210794,0.05436718,131.65,131.64,7.5986]
[1744570212496,0.05436718,131.65,131.62,0.05531848]
[1744570212895,7.5987,131.64,131.62,0.05531848]
[1744570214992,7.5991,131.63,131.62,0.05531848]
[1744570215191,33.72,131.63,131.62,0.05531848]
[1744570217297,41.3191,131.63,131.62,0.05531848]
[1744570218096,7.5991,131.63,131.62,0.05531848]
[1744570218295,41.3191,131.63,131.62,0.05531848]
[1744570224098,33.72,131.63,131.62,0.05531848]
[1744570224601,41.3191,131.63,131.62,0.05531848]
[1744570230908,33.72,131.63,131.62,0.05531848]
[1744570231902,0.05436718,131.65,131.62,8.7353508]
[1744570232106,33.74,131.69,131.64,8.68003232]
[1744570232414,33.74,131.72,131.66,8.68003232]
[1744570232805,41.3344,131.72,131.68,7.5958]
[1744570233304,0.05576526,131.71,131.69,0.04922895]
[1744570233511,0.05576526,131.71,131.69,7.64452895]
[1744570234205,0.05576526,131.71,131.7,7.5951]
[1744570237209,0.05576526,131.71,131.69,11.73962895]
[1744570237711,0.05576526,131.71,131.7,7.5951]
[1744570241410,33.64,131.75,131.7,8.68003232]
[1744570241600,42.32003232,131.75,131.7,8.68003232]
[1744570241802,42.32003232,131.75,131.72,7.5935]
[1744570242511,42.36806359,131.75,131.72,7.64150162]
[1744570242711,42.36806359,131.75,131.73,7.5933]
[1744570243112,8.72806359,131.75,131.73,7.5933]
[1744570243312,42.34806359,131.75,131.73,7.5933]
[1744570245813,8.72806359,131.75,131.73,7.5933]
[1744570248315,0.04803127,131.75,131.74,7.5928]
[1744570251011,0.04803127,131.75,131.73,7.5931]
[1744570251213,0.04803127,131.75,131.72,0.04800162]
[1744570251413,8.68003232,131.74,131.72,0.04800162]
[1744570251917,16.27293232,131.74,131.72,0.04800162]
[1744570252118,8.68003232,131.74,131.72,0.04800162]
[1744570252516,8.68003232,131.74,131.72,7.64180162]
[1744570252715,0.04803127,131.75,131.72,7.64180162]
[1744570253421,0.04803127,131.75,131.72,0.04800162]
[1744570254517,7.64053127,131.75,131.72,0.04800162]
[1744570255315,7.5932,131.74,131.72,0.04800162]
[1744570255515,8.68003232,131.74,131.72,0.04800162]
[1744570256318,7.5934,131.73,131.72,0.04800162]
[1744570257419,16.27303232,131.74,131.72,0.04800162]
[1744570257619,8.68003232,131.74,131.72,0.04800162]
[1744570258920,7.5934,131.73,131.72,0.04800162]
[1744570262116,7.5957,131.69,131.66,9.7235]
[1744570262313,42.30003232,131.7,131.64,8.68003232]
[1744570262516,33.62,131.69,131.62,10.66063232]
[1744570262718,8.68003232,131.66,131.6,8.68003232]
[1744570262919,8.68003232,131.64,131.6,8.68003232]
[1744570263120,33.62,131.65,131.62,8.68003232]
[1744570263320,33.62,131.68,131.64,8.68003232]
[1744570263522,49.89503232,131.71,131.67,7.5968]
[1744570264117,33.62,131.71,131.68,7.5959]
[1744570264420,33.62,131.71,131.67,1.9394]
[1744570264616,33.67707247,131.71,131.68,0.05774212]
[1744570265224,41.27187247,131.71,131.68,0.05774212]
[1744570266525,33.67707247,131.71,131.68,7.65384212]
[1744570267525,33.67707247,131.71,131.7,7.5951]
[1744570267726,0.05707247,131.71,131.7,7.5951]
[1744570267923,33.54,131.77,131.68,13.61757025]
[1744570268123,7.5919,131.76,131.72,7.5936]
[1744570269032,0.04823976,131.75,131.73,0.05578766]
[1744570271223,0.04823976,131.75,131.73,7.64868766]
[1744570271628,0.04823976,131.75,131.73,0.05578766]
[1744570272332,0.04823976,131.75,131.74,7.5928]
[1744570273130,0.04823976,131.75,131.73,7.64888766]
[1744570273331,0.04823976,131.75,131.73,0.05578766]
[1744570273831,0.04823976,131.75,131.73,2.12428766]
[1744570274128,33.52,131.8,131.73,2.12428766]
[1744570274334,33.52,131.8,131.74,15.57242813]
[1744570275227,33.52,131.8,131.75,2.1163]
[1744570275429,33.52,131.8,131.76,0.04867132]
[1744570275632,27.48447897,131.85,131.76,13.60849945]
[1744570275827,7.5885,131.82,131.79,7.5896]
[1744570276133,25.45157897,131.85,131.8,16.66131938]
[1744570276335,15.80297897,131.85,131.84,7.587]
[1744570276532,106.06925245,131.86,131.84,13.55982813]
[1744570276533,96.42155245,131.86,131.84,13.55982813]
[1744570276827,118.618035,131.9,131.84,13.61494744]
[1744570277225,126.201835,131.9,131.84,13.61494744]
[1744570277437,118.618035,131.9,131.84,13.61494744]
[1744570277935,126.202035,131.9,131.86,7.5855]
[1744570278233,118.618035,131.9,131.84,13.55982813]
[1744570278434,118.618035,131.9,131.88,7.5847]
[1744570278735,118.618035,131.9,131.87,0.05559762]
[1744570279034,126.201835,131.9,131.87,0.05559762]
[1744570279735,7.5845,131.89,131.87,0.05559762]
[1744570280030,13.55982813,131.91,131.87,0.05559762]
[1744570280237,7.5849,131.88,131.84,7.587]
[1744570280533,13.55982813,131.91,131.84,7.587]
[1744570280730,13.55982813,131.89,131.8,33.52]
[1744570280934,13.55982813,131.87,131.78,13.55982813]
[1744570281137,37.4963,131.86,131.78,13.55982813]
[1744570281325,7.5881,131.83,131.77,33.52]
[1744570281527,13.61739939,131.83,131.81,0.0570466]
[1744570281730,33.5,131.82,131.72,13.55982813]
[1744570281932,7.5901,131.79,131.75,7.5918]
[1744570282236,33.5,131.82,131.72,13.55982813]
[1744570282435,7.5896,131.8,131.75,7.5922]
[1744570282831,0.05781972,131.79,131.76,0.05771105]
[1744570283033,7.64811972,131.79,131.76,0.05771105]
[1744570283335,0.05781972,131.79,131.76,0.05771105]
[1744570283533,33.5,131.78,131.76,0.05771105]
[1744570283836,33.5,131.78,131.7,364.0]
[1744570284035,7.5925,131.75,131.71,7.5942]
[1744570284235,13.55982813,131.77,131.68,47.05982813]
[1744570284435,13.55982813,131.77,131.68,33.5]
[1744570284832,13.55982813,131.77,131.67,2.1023]
[1744570285032,0.05422822,131.74,131.71,0.05609993]
[1744570285337,33.55422822,131.74,131.71,0.05609993]
[1744570286339,7.5954,131.7,131.66,7.5972]
[1744570286839,41.0954,131.7,131.66,7.5972]
[1744570287438,41.0954,131.7,131.67,0.05695579]
[1744570287439,0.04980509,131.69,131.67,0.05695579]
[1744570288138,0.04980509,131.69,131.6,2.1222]
[1744570288339,7.5958,131.69,131.6,2.1222]
[1744570288740,33.5,131.7,131.6,2.1222]
[1744570289139,7.5964,131.68,131.6,2.1222]
[1744570289437,0.05375815,131.66,131.64,0.04834633]
[1744570290838,7.65115815,131.66,131.64,0.04834633]
[1744570291043,41.17115815,131.66,131.64,0.04834633]
[1744570291541,33.57375815,131.66,131.64,0.04834633]
[1744570293138,41.17115815,131.66,131.64,0.04834633]
[1744570294543,7.598,131.65,131.64,0.04834633]
[1744570294742,33.57375815,131.66,131.64,0.04834633]
[1744570295244,41.17125815,131.66,131.64,0.04834633]
[1744570295942,33.57375815,131.66,131.58,21.70211023]
[1744570296137,33.52,131.66,131.58,21.70211023]
[1744570296343,33.52,131.66,131.6,7.6004]
[1744570296541,7.5986,131.64,131.6,7.6004]
[1744570297143,0.05463711,131.63,131.61,0.04836048]
[1744570297442,7.5997,131.62,131.61,0.04836048]
[1744570297743,0.05463711,131.63,131.61,0.04836048]
[1744570298243,0.05463711,131.63,131.62,7.5997]
[1744570299735,4.1342,131.69,131.61,21.75047071]
[1744570300041,4.1342,131.69,131.6,33.46]
[1744570300242,4.1342,131.69,131.63,7.5988]
[1744570300243,7.5972,131.67,131.63,7.5988]
[1744570300442,4.1342,131.69,131.6,33.46]
[1744570300945,0.05709333,131.66,131.64,7.5982]
[1744570301243,0.05709333,131.66,131.63,0.05784229]
[1744570302144,0.05709333,131.66,131.65,7.598]
[1744570305951,0.05709333,131.66,131.64,7.5983]
[1744570306244,0.05709333,131.66,131.63,0.05784229]
[1744570307147,0.05709333,131.66,131.65,7.598]
[1744570308842,33.46,131.73,131.69,7.5957]
[1744570309046,33.46,131.73,131.64,47.02578833]
[1744570309550,33.46,131.73,131.66,7.5972]
[1744570309743,7.595,131.71,131.64,13.56578833]
[1744570309944,7.64852388,131.71,131.68,0.05714185]
[1744570310140,0.05352388,131.71,131.68,0.05714185]
[1744570310345,0.05352388,131.71,131.62,13.56578833]
[1744570310550,7.5957,131.69,131.65,7.5976]
[1744570310747,41.0557,131.69,131.65,7.5976]
[1744570310947,41.0557,131.69,131.62,13.56578833]
[1744570311149,33.46,131.69,131.66,7.597]
[1744570311447,33.5141637,131.69,131.66,7.65289207]
[1744570314046,33.5141637,131.69,131.67,7.5967]
[1744570314247,33.5141637,131.69,131.66,0.05589207]
[1744570314651,33.5141637,131.69,131.66,7.65299207]
[1744570315655,33.5141637,131.69,131.66,0.05589207]
[1744570316159,41.1101637,131.69,131.66,7.65329207]
[1744570316858,33.5141637,131.69,131.67,7.5968]
[1744570317060,0.0541637,131.69,131.66,0.05589207]
[1744570317260,0.0541637,131.69,131.66,13.6216804]
[1744570317462,0.0541637,131.69,131.68,7.5962]
[1744570317760,33.46,131.72,131.66,13.6216804]
[1744570317957,33.46,131.72,131.7,7.5948]
[1744570318157,33.46,131.72,131.66,13.56578833]
[1744570318762,0.05704956,131.7,131.68,0.05004113]
[1744570319155,0.05704956,131.7,131.69,7.5954]
[1744570321662,0.05704956,131.7,131.68,7.64604113]
[1744570321963,0.05704956,131.7,131.68,0.05004113]
[1744570322160,0.05704956,131.7,131.69,7.5957]
[1744570324060,0.05704956,131.7,131.68,7.64584113]
[1744570325968,0.05704956,131.7,131.69,7.5957]
[1744570326266,0.05704956,131.7,131.68,0.05004113]
[1744570326568,0.05704956,131.7,131.68,7.64594113]
[1744570327068,0.05704956,131.7,131.69,7.5957]
[1744570329269,2.0521,131.75,131.68,13.61582946]
[1744570329566,33.38,131.76,131.68,13.61582946]
[1744570329767,33.38,131.76,131.68,13.56578833]